bitfinex-derivatives/quotes_SOLF0:USTF0_20251006
["timestamp","ask_amount","ask_price","bid_price","bid_amount"]
[1759792224874,3.8472,233.84,233.82,3.58575813]
[1759792225065,8.01,233.85,233.81,3.58575813]
[1759792225372,8.01,233.85,233.78,3.58575813]
[1759792225872,8.01,233.81,233.78,3.58575813]
[1759792227671,3.8479,233.8,233.78,3.58575813]
[1759792227963,8.01,233.79,233.78,3.58575813]
[1759792228170,11.8579,233.8,233.77,3.58575813]
[1759792228370,8.01,233.79,233.77,3.58575813]
[1759792228874,8.01,233.79,233.76,3.58575813]
[1759792229473,8.01,233.78,233.74,18.59547573]
[1759792229671,2.41247814,233.81,233.75,7.84]
[1759792230181,6.26027814,233.81,233.75,7.84]
[1759792230678,3.848,233.8,233.75,7.84]
[1759792230871,8.01,233.79,233.75,7.84]
[1759792231574,3.848,233.8,233.75,7.84]
[1759792231781,8.01,233.8,233.72,3.58575813]
[1759792232278,8.01,233.8,233.71,3.58575813]
[1759792232579,3.8485,233.77,233.71,3.58575813]
[1759792232775,11.8585,233.77,233.71,3.58575813]
[1759792232974,8.01,233.77,233.71,3.58575813]
[1759792234182,8.01,233.77,233.7,3.58575813]
[1759792234381,8.01,233.77,233.7,7.43525813]
[1759792235283,2.41247814,233.81,233.72,7.84]
[1759792235284,14.27027814,233.81,233.72,7.84]
[1759792236081,3.848,233.8,233.72,7.84]
[1759792238679,3.8475,233.82,233.74,7.67]
[1759792239580,3.8475,233.82,233.74,11.5187]
[1759792239879,11.8072,233.84,233.74,7.67]
[1759792240383,11.8072,233.84,233.75,3.8485]
[1759792240583,11.8072,233.84,233.76,7.67]
[1759792245088,11.8072,233.84,233.76,11.5184]
[1759792248085,7.96,233.84,233.78,3.8481]
[1759792248394,5.3922522,233.87,233.77,7.51]
[1759792249594,5.3922522,233.87,233.8,3.8477]
[1759792249791,5.3922522,233.87,233.8,11.3577]
[1759792249994,7.28,233.88,233.8,7.51]
[1759792250495,7.28,233.88,233.81,3.8476]
[1759792251287,8.8253522,233.88,233.81,3.8476]
[1759792251697,12.6720522,233.88,233.81,3.8476]
[1759792257493,8.8253522,233.88,233.83,3.8473]
[1759792257990,7.28,233.88,233.81,7.51]
[1759792258193,7.28,233.91,233.85,7.51]
[1759792260699,7.28,233.89,233.84,3.58575813]
[1759792260901,7.28,233.89,233.82,3.58575813]
[1759792260902,1.5453522,233.89,233.82,3.58575813]
[1759792262202,1.5453522,233.89,233.83,7.51]
[1759792263305,11.1261,233.91,233.83,7.51]
[1759792263697,11.1261,233.91,233.84,3.8471]
[1759792265201,7.28,233.91,233.86,3.8467]
[1759792265402,7.28,233.91,233.84,3.58404577]
[1759792265700,7.28,233.91,233.84,7.43124577]
[1759792266997,7.28,233.91,233.84,14.94124577]
[1759792267199,7.28,233.91,233.85,3.58404577]
[1759792267499,7.28,233.91,233.84,14.94124577]
[1759792267700,7.28,233.91,233.85,7.43094577]
[1759792270904,1.5453522,233.94,233.86,7.51]
[1759792271212,7.28,233.95,233.87,7.51]
[1759792271812,11.1255,233.95,233.88,3.8464]
[1759792272708,11.1255,233.95,233.89,3.8463]
[1759792274112,3.8457,233.94,233.87,11.3567]
[1759792274300,7.28,233.96,233.87,11.3567]
[1759792274507,7.28,233.93,233.87,11.3567]
[1759792275112,7.28,233.93,233.88,3.8464]
[1759792275306,7.28,233.93,233.89,7.51]
[1759792275816,7.28,233.93,233.9,7.51]
[1759792277021,12.6704522,233.97,233.9,7.51]
[1759792277623,12.6704522,233.97,233.9,11.3561]
[1759792278921,3.8453,233.96,233.9,11.3561]
[1759792280325,7.28,233.97,233.91,3.8459]
[1759792280926,7.28,233.97,233.91,11.5959]
[1759792281425,17.09020593,234.0,233.93,7.75]
[1759792281824,7.81,233.99,233.93,7.75]
[1759792282126,11.6548,233.99,233.93,7.75]
[1759792283226,13.2001522,233.99,233.93,7.75]
[1759792286128,13.2001522,233.99,233.93,11.5956]
[1759792287533,3.8444,234.01,233.95,7.75]
[1759792287929,9.3553522,234.02,233.95,7.75]
[1759792288126,7.81,234.02,233.95,7.75]
[1759792288425,1.5453522,234.05,233.97,7.75]
[1759792288624,7.81,234.06,233.97,7.75]
[1759792288625,11.6537,234.06,233.97,7.75]
[1759792288823,11.6537,234.06,233.97,11.33488356]
[1759792289027,7.81,234.06,233.98,7.75]
[1759792290129,11.6537,234.06,233.98,7.75]
[1759792290432,7.81,234.06,233.98,7.75]
[1759792290634,7.81,234.04,233.98,7.75]
[1759792293637,7.81,234.04,233.98,11.5948]
[1759792297937,3.8435,234.07,233.99,3.8446]
[1759792298142,7.94,234.06,233.99,3.8446]
[1759792300645,7.94,234.06,234.0,3.8444]
[1759792302845,7.94,234.06,234.0,11.1444]
[1759792304446,7.94,234.06,234.02,7.3]
[1759792305045,7.94,234.06,234.01,3.8443]
[1759792305246,7.94,234.06,234.03,7.3]
[1759792308454,7.83,234.08,234.03,7.3]
[1759792308749,3.8431,234.09,234.03,7.3]
[1759792308955,7.83,234.08,234.03,7.3]
[1759792309150,3.8431,234.09,234.03,7.3]
[1759792309346,11.6731,234.09,234.03,7.3]
[1759792309949,108.31078509,234.15,233.98,3.57907911]
[1759792309950,2.40953553,234.07,233.98,3.57907911]
[1759792310252,7.83,234.06,233.96,3.57907911]
[1759792310455,3.8447,234.0,233.95,3.57907911]
[1759792310654,7.83,233.98,233.91,3.57907911]
[1759792310846,3.8454,233.96,233.89,7.75]
[1759792311047,7.83,233.95,233.89,7.75]
[1759792312350,7.83,233.95,233.89,11.32907911]
[1759792312550,7.83,233.95,233.89,15.17547911]
[1759792312749,7.83,234.01,233.9,3.57907911]
[1759792312953,7.83,234.01,233.93,7.75]
[1759792313252,7.83,234.01,233.93,11.32907911]
[1759792313448,2.40953553,234.02,233.93,3.57907911]
[1759792313655,7.83,233.97,233.9,3.57907911]
[1759792314156,7.83,233.97,233.9,7.42517911]
[1759792314356,7.83,233.97,233.91,3.57907911]
[1759792317061,2.40953553,233.98,233.88,12.52210548]
[1759792317062,3.8454,233.96,233.9,3.57907911]
[1759792317765,11.6754,233.96,233.9,3.57907911]
[1759792318264,7.83,233.96,233.9,7.42527911]
[1759792321360,7.83,233.97,233.9,3.57907911]
[1759792322061,3.8446,234.0,233.91,11.32907911]
[1759792322258,3.8446,234.0,233.92,3.57907911]
[1759792322863,3.8446,234.0,233.93,3.57907911]
[1759792323671,3.8446,234.0,233.93,7.42477911]
[1759792324368,3.8446,234.0,233.94,3.57907911]
[1759792325376,3.8446,234.0,233.93,3.8457]
[1759792325577,3.8446,234.0,233.94,3.5893698]
[1759792325871,2.40953553,234.07,233.96,11.3393698]
[1759792326066,7.83,234.02,233.94,3.5893698]
[1759792327676,7.83,233.99,233.94,3.5893698]
[1759792327876,3.8447,234.0,233.94,3.5893698]
[1759792328476,7.83,233.99,233.94,3.5893698]
[1759792328874,3.8447,234.0,233.94,3.5893698]
[1759792329773,7.83,233.99,233.94,3.5893698]
[1759792330375,3.8447,234.0,233.94,3.5893698]
[1759792330570,7.83,233.99,233.94,3.5893698]
[1759792330780,3.8447,234.0,233.94,3.5893698]
[1759792331275,7.83,233.99,233.94,3.5893698]
[1759792331882,3.8447,234.0,233.94,3.5893698]
[1759792332083,7.83,233.99,233.94,3.5893698]
[1759792332381,3.8447,234.0,233.94,3.5893698]
[1759792332577,11.6747,234.0,233.94,3.5893698]
[1759792332777,3.8448,233.99,233.94,3.5893698]
[1759792333081,3.8448,233.99,233.94,11.3393698]
[1759792333278,7.83,233.98,233.94,11.3393698]
[1759792333679,3.8448,233.99,233.94,11.3393698]
[1759792333881,7.83,233.98,233.94,11.3393698]
[1759792334081,3.8448,233.99,233.94,11.3393698]
[1759792334581,7.83,233.98,233.94,11.3393698]
[1759792335779,3.8448,233.99,233.94,11.3393698]
[1759792335982,2.40953553,233.99,233.93,3.5893698]
[1759792336184,7.83,233.98,233.92,3.5893698]
[1759792336384,7.83,233.98,233.91,3.5893698]
[1759792336881,3.8458,233.93,233.91,3.5893698]
[1759792337087,11.6758,233.93,233.91,3.5893698]
[1759792337287,7.83,233.92,233.91,3.5893698]
[1759792337483,7.83,233.92,233.89,3.5893698]
[1759792338284,3.8458,233.93,233.89,3.5893698]
[1759792338488,3.846,233.92,233.89,3.5893698]
[1759792338791,7.33,233.91,233.89,3.5893698]
[1759792338992,7.33,234.03,233.89,7.4356698]
[1759792339184,7.33,234.0,233.93,3.5893698]
[1759792339987,11.1746,234.0,233.94,7.4]
[1759792340291,11.1746,234.0,233.93,3.5893698]
[1759792341283,11.1746,234.0,233.93,7.4349698]
[1759792341483,3.8448,233.99,233.93,7.4349698]
[1759792343286,7.33,233.98,233.94,3.5893698]
[1759792343487,3.845,233.98,233.93,3.5893698]
[1759792343990,7.33,233.97,233.93,10.9893698]
[1759792344193,7.33,233.97,233.94,7.4]
[1759792344685,7.33,233.97,233.91,3.5893698]
[1759792344988,7.33,233.97,233.9,3.5893698]
[1759792345182,7.33,233.94,233.9,10.9893698]
[1759792345589,7.33,233.97,233.9,10.9893698]
[1759792345891,7.33,233.93,233.9,10.9893698]
[1759792346488,11.1758,233.93,233.9,10.9893698]
[1759792346690,11.1758,233.93,233.9,7.4]
[1759792347488,2.40953553,233.98,233.78,104.2]
[1759792347489,2.40953553,233.94,233.88,3.5893698]
[1759792347691,7.33,233.93,233.86,3.5893698]
[1759792348092,11.1765,233.89,233.86,3.5893698]
[1759792348794,3.8465,233.89,233.86,3.5893698]
[1759792349190,7.33,233.88,233.86,3.5893698]
[1759792352391,7.33,233.9,233.83,3.5893698]
[1759792353492,3.8466,233.88,233.83,3.5893698]
[1759792353696,7.33,233.92,233.84,3.5893698]
[1759792353892,7.33,233.92,233.86,3.5893698]
[1759792354097,11.176,233.92,233.86,3.5893698]
[1759792354599,11.176,233.92,233.85,7.4]
[1759792354600,7.33,233.91,233.87,3.5893698]
[1759792355195,7.33,233.91,233.84,8.61920548]
[1759792355196,7.33,233.91,233.86,3.5893698]
[1759792355402,7.33,233.91,233.87,3.5893698]
[1759792355602,7.33,233.91,233.86,10.9893698]
[1759792355794,11.1762,233.9,233.86,10.9893698]
[1759792355991,11.1762,233.9,233.86,7.4]
[1759792356197,3.8462,233.9,233.85,3.5893698]
[1759792356394,7.9,233.89,233.85,3.5893698]
[1759792356800,3.8462,233.9,233.85,3.5893698]
[1759792357100,7.9,233.89,233.85,3.5893698]
[1759792357295,3.8465,233.89,233.85,3.5893698]
[1759792357491,59.8221,233.94,233.85,3.5893698]
[1759792357696,59.8221,233.94,233.83,7.22]
[1759792357697,59.8221,233.94,233.83,10.8093698]
[1759792358199,7.9,233.93,233.83,7.22]
[1759792358501,10.30953553,233.93,233.83,7.22]
[1759792358794,11.7467,233.88,233.82,10.8093698]
[1759792359696,2.40953553,233.89,233.81,3.5893698]
[1759792359894,7.9,233.79,233.68,7.22]
[1759792360097,11.748,233.79,233.68,7.22]
[1759792360899,3.8476,233.82,233.71,7.22]
[1759792361301,11.7473,233.84,233.75,7.22]
[1759792362898,7.9,233.84,233.75,7.22]
[1759792363399,11.7473,233.84,233.75,11.0685]
[1759792367202,13.29268015,233.84,233.75,11.0685]
[1759792368412,7.9,233.84,233.78,7.25]
[1759792369002,1.54538015,233.86,233.78,7.25]
[1759792370606,1.54538015,233.86,233.78,11.0982]
[1759792370807,7.38,233.88,233.78,7.25]
[1759792371713,7.38,233.88,233.8,7.25]
[1759792373713,3.8469,233.87,233.8,7.25]
[1759792376414,3.8469,233.87,233.8,11.0977]
[1759792377618,3.8464,233.9,233.8,7.25]
[1759792378015,7.38,233.92,233.82,1.54538015]
[1759792378217,7.38,233.92,233.83,7.25]
[1759792378617,7.38,233.92,233.84,3.847]
[1759792380513,11.226,233.92,233.84,3.847]
[1759792380712,7.38,233.92,233.83,7.25]
[1759792382621,11.226,233.92,233.85,3.8469]
[1759792384116,7.38,233.92,233.82,1.54538015]
[1759792384324,7.38,233.92,233.88,7.25]
[1759792385424,8.92538015,233.93,233.85,7.25]
[1759792385817,7.38,233.89,233.81,88.42]
[1759792386122,7.38,233.89,233.81,95.67]
[1759792387823,7.38,233.89,233.81,99.5177]
[1759792388024,7.38,233.89,233.81,95.67]
[1759792389619,7.38,233.89,233.82,3.8474]
[1759792390327,7.38,233.89,233.83,7.25]
[1759792393526,7.38,233.89,233.83,11.0972]
[1759792396436,7.38,233.89,233.84,3.8471]
[1759792396642,1.54538015,233.91,233.85,7.25]
[1759792398538,7.38,233.93,233.85,7.25]
[1759792399239,8.0,233.9,233.85,7.25]
[1759792399544,8.0,233.9,233.82,7.59]
[1759792400543,3.8466,233.88,233.82,7.59]
[1759792401344,8.0,233.9,233.82,7.59]
[1759792401345,13.39168015,233.9,233.82,7.59]
[1759792402045,9.54538015,233.9,233.82,7.59]
[1759792403644,3.8466,233.88,233.82,7.59]
[1759792404448,13.39168015,233.9,233.82,11.4374]
[1759792405948,3.8465,233.89,233.82,11.4374]
[1759792406451,3.8467,233.88,233.82,11.4374]
[1759792407248,8.0,233.87,233.8,4.78446053]
[1759792407455,8.0,233.84,233.78,7.59]
[1759792407751,1.54538015,233.87,233.78,7.59]
[1759792408651,3.8469,233.86,233.79,3.8479]
[1759792408852,3.8469,233.86,233.8,7.59]
[1759792410546,11.8469,233.86,233.8,7.59]
[1759792412351,11.8469,233.86,233.8,11.4377]
[1759792412647,1.54538015,233.87,233.8,7.59]
[1759792412952,9.54538015,233.9,233.82,11.4374]
[1759792414553,3.8465,233.89,233.83,7.59]
[1759792415054,9.54538015,233.9,233.83,11.4373]
[1759792415653,13.39168015,233.9,233.83,11.4373]
[1759792416454,3.8465,233.89,233.83,7.59]
[1759792416954,3.8466,233.88,233.81,8.63206053]
[1759792417154,3.8466,233.88,233.82,7.51]
[1759792419261,3.8466,233.88,233.82,11.3574]
[1759792419758,8.94538015,233.9,233.82,11.3574]
[1759792420154,8.94538015,233.9,233.84,7.51]
[1759792422158,12.79168015,233.9,233.84,7.51]
[1759792423059,3.8465,233.89,233.84,7.51]
[1759792423556,3.8465,233.89,233.73,67.5709]
[1759792423557,7.4,233.86,233.8,7.51]
[1759792423756,8.94538015,233.84,233.8,7.51]
[1759792423961,1.54538015,233.84,233.78,4.78446053]
[1759792424159,8.94538015,233.84,233.78,4.78446053]
[1759792424557,12.79268015,233.84,233.77,4.78446053]
[1759792425460,12.79268015,233.84,233.77,8.63276053]
[1759792425964,1.54538015,233.87,233.78,7.51]
[1759792426262,1.54538015,233.87,233.8,12.29446053]
[1759792428561,5.39218015,233.87,233.8,12.29446053]
[1759792429069,3.8468,233.87,233.8,12.29446053]
[1759792429260,3.8468,233.87,233.8,16.14216053]
[1759792429561,7.4,233.88,233.8,16.14216053]
[1759792429766,2.41402944,233.89,233.8,12.29446053]
[1759792429964,7.97,233.88,233.79,4.78446053]
[1759792430164,2.41402944,233.89,233.77,12.41446053]
[1759792430668,7.97,233.88,233.77,12.41446053]
[1759792430870,7.97,233.88,233.77,7.63]
[1759792431371,11.8175,233.83,233.77,7.63]
[1759792432568,3.8477,233.81,233.75,41.88]
[1759792432768,11.8177,233.81,233.75,41.88]
[1759792434162,7.97,233.78,233.75,41.88]
[1759792434365,7.97,233.8,233.71,4.78446053]
[1759792434960,3.8485,233.77,233.71,4.78446053]
[1759792435369,3.8485,233.77,233.7,12.41446053]
[1759792435669,7.97,233.78,233.7,7.63]
[1759792436168,11.8182,233.78,233.7,7.63]
[1759792437361,3.8485,233.77,233.7,7.63]
[1759792440272,7.97,233.78,233.7,11.4794]
[1759792440472,7.97,233.78,233.71,7.63]
[1759792441070,59.8217,233.94,233.74,7.63]
[1759792441071,3.8477,233.82,233.74,7.63]
[1759792441270,11.8177,233.82,233.74,7.63]
[1759792441472,3.8479,233.8,233.74,7.63]
[1759792441664,7.97,233.83,233.7,11.4794]
[1759792441871,59.8472,233.84,233.7,11.4794]
[1759792442072,7.97,233.83,233.7,11.4794]
[1759792442272,59.8472,233.84,233.7,11.4794]
[1759792442467,7.97,233.82,233.7,11.4794]
[1759792443074,59.8488,233.83,233.7,11.4794]
[1759792443376,7.97,233.78,233.67,4.78446053]
[1759792443570,7.97,233.78,233.66,7.63]
[1759792443765,59.8591,233.79,233.66,11.48]
[1759792443766,3.849,233.74,233.66,11.48]
[1759792443969,3.849,233.74,233.67,7.63]
[1759792445677,3.8491,233.73,233.67,7.63]
[1759792449673,59.8597,233.79,233.67,7.63]
[1759792449674,7.97,233.71,233.67,7.63]
[1759792450178,7.97,233.71,233.65,7.63]
[1759792450679,3.8489,233.74,233.65,7.63]
[1759792451580,3.8489,233.74,233.66,3.8501]
[1759792451880,3.8489,233.74,233.67,7.63]
[1759792452280,3.8491,233.73,233.67,7.63]
[1759792453884,3.8491,233.73,233.63,104.34]
[1759792454683,3.8491,233.73,233.66,3.8501]
[1759792454882,11.8193,233.72,233.63,104.34]
[1759792455285,7.97,233.71,233.63,104.34]
[1759792455582,3.8498,233.69,233.63,104.34]
[1759792455983,7.97,233.72,233.56,7.11]
[1759792456184,7.97,233.72,233.54,104.34]
[1759792456185,7.97,233.67,233.57,7.11]
[1759792456490,2.41402944,233.66,233.57,7.11]
[1759792456787,7.97,233.65,233.57,7.11]
[1759792458294,11.8205,233.65,233.57,7.11]
[1759792458691,7.97,233.65,233.57,7.11]
[1759792458897,7.97,233.65,233.58,3.8513]
[1759792459189,7.97,233.65,233.57,7.11]
[1759792459793,7.97,233.65,233.57,10.9615]
[1759792459993,7.97,233.65,233.58,7.12]
[1759792460187,7.4,233.7,233.58,7.12]
[1759792461087,11.2496,233.7,233.61,10.971]
[1759792463196,7.4,233.65,233.57,7.12]
[1759792466101,11.2504,233.65,233.57,7.12]
[1759792472109,7.4,233.65,233.57,10.9715]
[1759792472406,7.4,233.65,233.57,7.12]
[1759792473008,7.4,233.65,233.51,7.12]
[1759792473306,11.2508,233.63,233.53,3.8523]
[1759792473713,11.2508,233.63,233.51,7.12]
[1759792474008,11.2508,233.63,233.52,3.8523]
[1759792476313,7.4,233.63,233.53,7.12]
[1759792477410,50.0,233.55,233.54,3.8521]
[1759792477611,50.0,233.55,233.54,10.9721]
[1759792484218,50.0,233.55,233.54,15.7562061]
[1759792485813,3.568e-05,233.5,233.49,162.7200275]
[1759792486120,7.46,233.59,233.5,59.9328]
[1759792487118,7.46,233.63,233.55,3.8519]
[1759792488012,7.79,233.63,233.52,3.8524]
[1759792489129,3.8508,233.62,233.53,3.8522]
[1759792489418,7.79,233.61,233.53,3.8522]
[1759792491022,1.54853727,233.58,233.53,3.8522]
[1759792491819,7.79,233.57,233.53,3.8522]
[1759792492020,1.54853727,233.58,233.53,3.8522]
[1759792492420,7.79,233.57,233.53,3.8522]
[1759792493019,1.54853727,233.58,233.53,3.8522]
[1759792493725,7.79,233.57,233.53,3.8522]
[1759792494323,1.54853727,233.58,233.53,3.8522]
[1759792494721,7.79,233.57,233.53,3.8522]
[1759792494923,1.54853727,233.58,233.53,3.8522]
[1759792495124,7.79,233.57,233.53,3.8522]
[1759792495324,7.79,233.57,233.51,3.8526]
[1759792496032,1.54853727,233.58,233.52,3.8523]
[1759792496516,7.79,233.57,233.5,104.4]
[1759792497224,7.79,233.57,233.54,3.852]
[1759792497828,1.54853727,233.6,233.5,104.4]
[1759792499629,7.79,233.59,233.55,3.8519]
[1759792499828,1.54853727,233.6,233.55,3.8519]
[1759792500334,7.79,233.56,233.53,3.8523]
[1759792501033,1.54853727,233.57,233.53,3.8523]
[1759792501230,7.79,233.56,233.51,3.8526]
[1759792501527,7.79,233.51,233.39,59.9601]
[1759792501732,1.54853727,233.49,233.39,59.9601]
[1759792502136,1.54853727,233.5,233.39,59.9601]
[1759792502335,7.79,233.55,233.43,59.9509]
[1759792502530,7.79,233.55,233.44,104.46]
[1759792505237,7.79,233.55,233.44,164.4068]
[1759792505435,9.33853727,233.55,233.44,164.4068]
[1759792505939,9.33853727,233.55,233.49,3.853]
[1759792506539,9.33853727,233.55,233.5,3.8527]
[1759792506746,9.33853727,233.58,233.46,59.9433]
[1759792506933,9.33853727,233.55,233.48,3.8531]
[1759792507547,9.33853727,233.55,233.47,104.58]
[1759792508342,9.33853727,233.55,233.49,3.8528]
[1759792509044,9.33853727,233.55,233.47,104.6]
[1759792509548,7.79,233.51,233.47,104.6]
[1759792510542,9.33853727,233.52,233.46,108.4533]
[1759792511243,9.33853727,233.52,233.43,3.8538]
[1759792511448,9.33853727,233.52,233.43,104.58]
[1759792511742,1.54853727,233.49,233.43,104.58]
[1759792512642,7.79,233.48,233.44,3.8537]
[1759792513836,7.79,233.53,233.43,104.58]
[1759792514045,1.54853727,233.5,233.43,104.58]
[1759792514234,7.79,233.49,233.38,59.9627]
[1759792514439,7.79,233.45,233.31,59.9804]
[1759792514740,1.54853727,233.42,233.31,59.9804]
[1759792514939,9.33853727,233.42,233.33,3.8555]
[1759792515136,1.54853727,233.39,233.28,7.18960106]
[1759792515337,7.79,233.39,233.3,3.8561]
[1759792515639,59.9353,233.5,233.3,3.8561]
[1759792515640,7.79,233.37,233.3,3.8561]
[1759792515944,7.79,233.31,233.21,4.78601709]
[1759792516334,59.9603,233.4,233.14,80.9]
[1759792516335,1.54853727,233.24,233.14,80.9]
[1759792516738,18.96,233.38,233.08,7.18960106]
[1759792516739,1.54853727,233.15,233.08,4.78601709]
[1759792517032,1.54853727,233.25,233.12,1.54853727]
[1759792517234,7.79,233.24,233.13,110.1988]
[1759792517435,1.54853727,233.22,233.13,110.1988]
[1759792517746,1.54853727,233.22,233.15,3.8585]
[1759792518036,1.54853727,233.28,233.19,0.02]
[1759792518243,7.79,233.29,233.2,106.46]
[1759792518434,9.33853727,233.29,233.22,3.8573]
[1759792518634,9.33853727,233.29,233.22,60.0048]
[1759792518838,13.2798054,233.31,233.23,0.02]
[1759792519034,1.54853727,233.32,233.26,3.8567]
[1759792519239,8.96853727,233.32,233.27,106.5]
[1759792519739,8.96853727,233.32,233.26,3.8567]
[1759792519945,1.54853727,233.32,233.28,0.02]
[1759792520343,1.54853727,233.32,233.28,3.8763]
[1759792520841,7.42,233.31,233.29,106.5]
[1759792521639,1.54853727,233.32,233.27,106.46]
[1759792521847,7.42,233.31,233.27,106.46]
[1759792522739,1.54853727,233.32,233.23,0.02]
[1759792522942,1.54853727,233.29,233.24,96.12]
[1759792523141,7.42,233.28,233.24,96.12]
[1759792523540,7.42,233.28,233.19,3.8779]
[1759792523737,7.42,233.28,233.2,106.44]
[1759792524441,7.42,233.28,233.21,106.46]
[1759792524637,7.42,233.28,233.22,106.46]
[1759792527446,1.54853727,233.26,233.19,0.02]
[1759792527646,1.54853727,233.26,233.2,106.42]
[1759792528340,3.8557,233.33,233.14,61.57363727]
[1759792528341,8.96853727,233.23,233.21,106.38]
[1759792528546,8.96853727,233.23,233.2,106.4]
[1759792528943,8.96853727,233.23,233.15,3.8585]
[1759792529148,8.96853727,233.23,233.16,106.4]
[1759792529348,8.96853727,233.23,233.17,106.4]
[1759792530541,8.96853727,233.23,233.15,3.8585]
[1759792530745,7.42,233.19,233.16,106.38]
[1759792531247,1.54853727,233.23,233.16,106.38]
[1759792531447,1.54853727,233.23,233.16,106.4]
[1759792532250,1.54853727,233.23,233.17,106.36]
[1759792532451,7.42,233.25,233.14,106.38]
[1759792532652,1.54853727,233.22,233.14,106.38]
[1759792533654,1.54853727,233.22,233.17,3.8581]
[1759792533850,8.96853727,233.22,233.17,3.8581]
[1759792534653,7.42,233.21,233.14,110.2386]
[1759792535044,1.54853727,233.22,233.05,0.02]
[1759792535045,7.42,233.14,233.05,0.02]
[1759792535245,1.54853727,233.1,232.97,23.56853727]
[1759792535446,8.96853727,233.11,232.98,0.02]
[1759792535649,7.42,233.11,232.99,3.8611]
[1759792535855,7.42,233.11,233.01,0.02]
[1759792536354,1.54853727,233.09,233.01,0.02]
[1759792536556,1.54853727,233.09,233.02,30.0]
[1759792536855,7.42,233.11,233.02,30.0]
[1759792537055,8.96853727,233.11,233.02,30.0]
[1759792537249,8.96853727,233.11,233.01,0.02]
[1759792537445,7.27,233.07,232.98,17.38]
[1759792537649,1.54853727,233.02,232.96,0.03]
[1759792537848,29.88,233.15,232.97,46.2]
[1759792538158,8.81853727,233.07,232.96,0.03]
[1759792538359,8.81853727,233.07,232.97,47.58]
[1759792538657,7.27,233.07,232.98,93.86]
[1759792538858,1.54853727,233.06,232.98,93.86]
[1759792539261,1.54853727,233.06,232.99,0.03]
[1759792539754,7.27,233.07,233.0,107.42]
[1759792539960,1.54853727,233.15,233.03,0.03]
[1759792540362,1.54853727,233.15,233.04,107.46]
[1759792540863,1.54853727,233.15,233.05,107.46]
[1759792541162,1.54853727,233.15,233.05,111.3202]
[1759792541559,1.54853727,233.15,233.05,3.8602]
[1759792541759,1.54853727,233.15,233.06,107.44]
[1759792541958,1.54853727,233.15,233.07,3.8899]
[1759792542154,8.81853727,233.18,233.07,0.03]
[1759792543663,8.81853727,233.18,233.09,3.8595]
[1759792543859,7.27,233.24,233.1,0.03]
[1759792544067,1.54853727,233.21,233.1,0.03]
[1759792544261,1.54853727,233.21,233.1,3.8893]
[1759792544868,1.54853727,233.21,233.12,3.859]
[1759792545863,1.54853727,233.21,233.13,107.36]
[1759792546171,1.54853727,233.21,233.14,3.8587]
[1759792546369,7.27,233.24,233.13,107.39]
[1759792546370,8.81853727,233.24,233.13,107.39]
[1759792546571,8.81853727,233.24,233.14,1.57853727]
[1759792546771,1.54853727,233.24,233.15,0.03]
[1759792546967,1.54853727,233.24,233.16,107.38]
[1759792548666,1.54853727,233.24,233.17,107.32]
[1759792549073,1.54853727,233.24,233.18,107.32]